[Event "Late-Titled-Tuesday-Blitz-January-16-2024"]
[Site "Chess.com"]
[Date "2024.01.16"]
[Round "3"]
[White "Ticondriul"]
[Black "OparinGrigoriy"]
[Result "0-1"]
[WhiteElo "2729"]
[BlackElo "3058"]
[TimeControl "180+1"]
[EndTime "14:27:45 PST"]
[Termination "OparinGrigoriy won on time"]

1. d4 {[%clk 0:02:49.7]} 1... Nf6 {[%clk 0:02:59.6]} 2. Nf3 {[%clk 0:02:49.7]}
2... b5 {[%clk 0:02:56.9]} 3. e3 {[%clk 0:02:41.8]} 3... a6 {[%clk 0:02:53.6]}
4. Bd3 {[%clk 0:02:38.6]} 4... Bb7 {[%clk 0:02:49.6]} 5. O-O {[%clk 0:02:38.7]}
5... e6 {[%clk 0:02:50.1]} 6. b3 {[%clk 0:02:38.9]} 6... c5 {[%clk 0:02:50.5]}
7. Bb2 {[%clk 0:02:38.9]} 7... cxd4 {[%clk 0:02:33.8]} 8. exd4 {[%clk
0:02:26.3]} 8... d6 {[%clk 0:02:30.4]} 9. Nbd2 {[%clk 0:02:16.5]} 9... Nbd7
{[%clk 0:02:29.9]} 10. Qe2 {[%clk 0:02:10.4]} 10... Be7 {[%clk 0:02:29.4]} 11.
c3 {[%clk 0:02:03.2]} 11... O-O {[%clk 0:02:28.1]} 12. a4 {[%clk 0:02:00.5]}
12... bxa4 {[%clk 0:02:21.6]} 13. Rxa4 {[%clk 0:02:00.3]} 13... a5 {[%clk
0:02:22.3]} 14. c4 {[%clk 0:01:55.1]} 14... Bc6 {[%clk 0:02:12.3]} 15. Ra2
{[%clk 0:01:51.2]} 15... Re8 {[%clk 0:02:07.6]} 16. Bc3 {[%clk 0:01:45.5]} 16...
Bf8 {[%clk 0:01:31.5]} 17. Rfa1 {[%clk 0:01:34.1]} 17... a4 {[%clk 0:01:31.6]}
18. b4 {[%clk 0:01:27]} 18... e5 {[%clk 0:01:31.1]} 19. d5 {[%clk 0:01:18.9]}
19... Bb7 {[%clk 0:01:30]} 20. Ne4 {[%clk 0:01:08.2]} 20... Nxe4 {[%clk
0:01:23.5]} 21. Qxe4 {[%clk 0:01:08]} 21... g6 {[%clk 0:01:21.5]} 22. Qg4 {[%clk
0:00:59.3]} 22... Bg7 {[%clk 0:01:19.4]} 23. Ng5 {[%clk 0:00:50.1]} 23... Qe7
{[%clk 0:00:51.6]} 24. h4 {[%clk 0:00:36.6]} 24... h6 {[%clk 0:00:32.9]} 25. Nh3
{[%clk 0:00:11.3]} 25... e4 {[%clk 0:00:24.2]} 26. Bxg7 {[%clk 0:00:10.9]} 26...
Kxg7 {[%clk 0:00:25.1]} 27. Bf1 {[%clk 0:00:09.6]} 27... f5 {[%clk 0:00:24.5]}
28. Qg3 {[%clk 0:00:09.6]} 28... Ne5 {[%clk 0:00:21.4]} 29. Nf4 {[%clk
0:00:09.9]} 29... Bc8 {[%clk 0:00:15.9]} 30. c5 {[%clk 0:00:06.5]} 30... g5
{[%clk 0:00:14.1]} 31. Rxa4 {[%clk 0:00:04.7]} 31... Rxa4 {[%clk 0:00:13.7]} 32.
Rxa4 {[%clk 0:00:05.5]} 32... Ng4 {[%clk 0:00:13]} 33. hxg5 {[%clk 0:00:05.5]}
33... hxg5 {[%clk 0:00:13.9]} 34. cxd6 {[%clk 0:00:05.5]} 34... Qf7 {[%clk
0:00:07.6]} 35. Ne2 {[%clk 0:00:04.2]} 35... f4 {[%clk 0:00:07.4]} 36. Qc3+
{[%clk 0:00:04.3]} 36... Kh6 {[%clk 0:00:08]} 37. Qc5 {[%clk 0:00:04.6]} 37...
e3 {[%clk 0:00:07.3]} 38. Ra7 {[%clk 0:00:04.1]} 38... exf2+ {[%clk 0:00:07.2]}
39. Qxf2 {[%clk 0:00:02.2]} 39... Qh5 {[%clk 0:00:06.8]} 40. g3 {[%clk
0:00:01.1]} 40... Nxf2 {[%clk 0:00:06.5]} 41. Kxf2 {[%clk 0:00:02]} 41... Qh2+
{[%clk 0:00:05.5]} 42. Bg2 {[%clk 0:00:01.1]} 42... Bh3 {[%clk 0:00:06.2]} 43.
Nxf4 {[%clk 0:00:01.1]} 43... gxf4 {[%clk 0:00:06.4]} 0-1

[Event "Late-Titled-Tuesday-Blitz-January-16-2024"]
[Site "Chess.com"]
[Date "2024.01.16"]
[Round "3"]
[White "Bastiandash"]
[Black "Megagigahiper3345"]
[Result "1-0"]
[WhiteElo "2514"]
[BlackElo "2684"]
[TimeControl "180+1"]
[EndTime "14:27:46 PST"]
[Termination "Bastiandash won by checkmate"]

1. d4 {[%clk 0:03:00.9]} 1... Nf6 {[%clk 0:02:59]} 2. c4 {[%clk 0:03:01.4]} 2...
g6 {[%clk 0:02:58.8]} 3. f3 {[%clk 0:03:00.6]} 3... e6 {[%clk 0:02:56.9]} 4. e4
{[%clk 0:02:58.5]} 4... d5 {[%clk 0:02:54.5]} 5. Nc3 {[%clk 0:02:48.3]} 5...
dxe4 {[%clk 0:02:53.9]} 6. fxe4 {[%clk 0:02:49.2]} 6... c5 {[%clk 0:02:48.8]} 7.
d5 {[%clk 0:02:49.3]} 7... exd5 {[%clk 0:02:48.2]} 8. exd5 {[%clk 0:02:36]} 8...
Bg7 {[%clk 0:02:44.3]} 9. Nf3 {[%clk 0:02:35.5]} 9... O-O {[%clk 0:02:44.1]} 10.
Be2 {[%clk 0:02:36.2]} 10... Bg4 {[%clk 0:02:31.9]} 11. O-O {[%clk 0:02:34.1]}
11... Nbd7 {[%clk 0:02:30.8]} 12. Bf4 {[%clk 0:02:33.5]} 12... Re8 {[%clk
0:02:29.9]} 13. Qd2 {[%clk 0:02:25.7]} 13... Nh5 {[%clk 0:02:07.6]} 14. Bg5
{[%clk 0:02:11.8]} 14... Qb6 {[%clk 0:01:50]} 15. Rae1 {[%clk 0:02:09.1]} 15...
a6 {[%clk 0:01:33.8]} 16. Bd1 {[%clk 0:01:59.1]} 16... Qd6 {[%clk 0:01:23.8]}
17. Ne4 {[%clk 0:01:31.9]} 17... Qb6 {[%clk 0:01:16.4]} 18. b3 {[%clk
0:01:32.4]} 18... f5 {[%clk 0:01:13.9]} 19. Nf2 {[%clk 0:01:26.5]} 19... Nhf6
{[%clk 0:00:56.7]} 20. Bh6 {[%clk 0:01:15.9]} 20... Bh8 {[%clk 0:00:51.6]} 21.
Ng5 {[%clk 0:01:11.6]} 21... Bxd1 {[%clk 0:00:49.7]} 22. Qxd1 {[%clk 0:01:07]}
22... Qa5 {[%clk 0:00:40.5]} 23. Rxe8+ {[%clk 0:00:59.4]} 23... Rxe8 {[%clk
0:00:41.4]} 24. Qc2 {[%clk 0:00:45.2]} 24... Ne5 {[%clk 0:00:37.8]} 25. Ne6
{[%clk 0:00:39.7]} 25... Nfg4 {[%clk 0:00:37.5]} 26. Bf4 {[%clk 0:00:37]} 26...
Nxf2 {[%clk 0:00:34.4]} 27. Qxf2 {[%clk 0:00:25.4]} 27... Ng4 {[%clk 0:00:33.3]}
28. Qd2 {[%clk 0:00:14.9]} 28... Qb6 {[%clk 0:00:09.8]} 29. Re1 {[%clk
0:00:08.7]} 29... Nf6 {[%clk 0:00:09.7]} 30. Ng5 {[%clk 0:00:05.9]} 30... Qd8
{[%clk 0:00:08]} 31. Ne6 {[%clk 0:00:03.5]} 31... Qc8 {[%clk 0:00:05.7]} 32. Kh1
{[%clk 0:00:03.5]} 32... Ne4 {[%clk 0:00:06.1]} 33. Qe3 {[%clk 0:00:03.6]} 33...
Qd7 {[%clk 0:00:05.9]} 34. Qh3 {[%clk 0:00:03.5]} 34... Bc3 {[%clk 0:00:04.4]}
35. Rf1 {[%clk 0:00:03.5]} 35... Bf6 {[%clk 0:00:04.4]} 36. Qd3 {[%clk
0:00:02.9]} 36... Bg7 {[%clk 0:00:04.6]} 37. Qf3 {[%clk 0:00:03]} 37... Bh8
{[%clk 0:00:04.5]} 38. g4 {[%clk 0:00:03.5]} 38... b5 {[%clk 0:00:03.4]} 39.
gxf5 {[%clk 0:00:03.7]} 39... Nf6 {[%clk 0:00:01.7]} 40. fxg6 {[%clk 0:00:03.9]}
40... hxg6 {[%clk 0:00:02.5]} 41. Rg1 {[%clk 0:00:04.5]} 41... Nh7 {[%clk
0:00:02.7]} 42. Rxg6+ {[%clk 0:00:04.4]} 42... Kf7 {[%clk 0:00:03.4]} 43. Qh5
{[%clk 0:00:04.9]} 43... Nf6 {[%clk 0:00:04]} 44. Rg7# {[%clk 0:00:04.4]} 1-0

[Event "Late-Titled-Tuesday-Blitz-January-16-2024"]
[Site "Chess.com"]
[Date "2024.01.16"]
[Round "3"]
[White "LastHeroJr"]
[Black "varunkrishnanchess"]
[Result "0-1"]
[WhiteElo "2467"]
[BlackElo "2642"]
[TimeControl "180+1"]
[EndTime "14:27:46 PST"]
[Termination "varunkrishnanchess won by resignation"]

1. e4 {[%clk 0:03:00.9]} 1... e5 {[%clk 0:02:52.6]} 2. Nf3 {[%clk 0:03:01.1]}
2... Nc6 {[%clk 0:02:51.4]} 3. Bc4 {[%clk 0:03:01.2]} 3... Bc5 {[%clk
0:02:48.1]} 4. O-O {[%clk 0:02:59.9]} 4... Nf6 {[%clk 0:02:33.3]} 5. d3 {[%clk
0:02:59.9]} 5... O-O {[%clk 0:02:31.7]} 6. a4 {[%clk 0:02:58.4]} 6... a5 {[%clk
0:02:30.2]} 7. Bg5 {[%clk 0:02:48.6]} 7... d6 {[%clk 0:02:28.6]} 8. c3 {[%clk
0:02:43.3]} 8... h6 {[%clk 0:02:24.7]} 9. Bh4 {[%clk 0:02:42.8]} 9... g5 {[%clk
0:02:21]} 10. Bg3 {[%clk 0:02:42.8]} 10... Bg4 {[%clk 0:02:18.1]} 11. Nbd2
{[%clk 0:02:35]} 11... Bb6 {[%clk 0:02:10.7]} 12. Qb3 {[%clk 0:02:26.5]} 12...
Nd7 {[%clk 0:02:02.7]} 13. Rfe1 {[%clk 0:02:02.5]} 13... Nc5 {[%clk 0:01:59.9]}
14. Qc2 {[%clk 0:02:02]} 14... Ne6 {[%clk 0:01:56.3]} 15. h3 {[%clk 0:01:55.8]}
15... Bh5 {[%clk 0:01:55.1]} 16. Nh2 {[%clk 0:01:53]} 16... Nf4 {[%clk
0:01:51.6]} 17. Ndf1 {[%clk 0:01:43]} 17... Ne7 {[%clk 0:01:43.9]} 18. Ne3
{[%clk 0:01:40.2]} 18... c6 {[%clk 0:01:39.8]} 19. Nhg4 {[%clk 0:01:14.6]} 19...
Kg7 {[%clk 0:01:38]} 20. Bb3 {[%clk 0:01:10.9]} 20... Bg6 {[%clk 0:01:33.2]} 21.
Nh2 {[%clk 0:01:02.1]} 21... f5 {[%clk 0:01:29.5]} 22. Rad1 {[%clk 0:00:56.7]}
22... Nxh3+ {[%clk 0:01:22.8]} 23. gxh3 {[%clk 0:00:56.5]} 23... f4 {[%clk
0:01:23.3]} 24. Kg2 {[%clk 0:00:54.8]} 24... h5 {[%clk 0:00:45.9]} 25. d4 {[%clk
0:00:44.7]} 25... Qc7 {[%clk 0:00:37.9]} 26. Nf3 {[%clk 0:00:37.1]} 26... fxg3
{[%clk 0:00:31.2]} 27. fxg3 {[%clk 0:00:35.5]} 27... d5 {[%clk 0:00:31.3]} 28.
Nxg5 {[%clk 0:00:35.4]} 28... Rf6 {[%clk 0:00:25.5]} 29. Rf1 {[%clk 0:00:34.5]}
29... Raf8 {[%clk 0:00:24.6]} 30. Rxf6 {[%clk 0:00:34.5]} 30... Rxf6 {[%clk
0:00:24.2]} 31. Rf1 {[%clk 0:00:34.8]} 31... Qd8 {[%clk 0:00:16.6]} 32. h4
{[%clk 0:00:28.5]} 32... exd4 {[%clk 0:00:12.9]} 33. Rxf6 {[%clk 0:00:26]} 33...
Kxf6 {[%clk 0:00:03.7]} 34. Qf2+ {[%clk 0:00:26.1]} 34... Nf5 {[%clk 0:00:03.6]}
35. Nxf5 {[%clk 0:00:21]} 35... dxc3 {[%clk 0:00:03.7]} 36. Nh6+ {[%clk
0:00:11.1]} 36... Bxf2 {[%clk 0:00:02.9]} 37. Kxf2 {[%clk 0:00:06]} 37... cxb2
{[%clk 0:00:02.5]} 38. Ba2 {[%clk 0:00:06.5]} 38... Qb6+ {[%clk 0:00:03.1]} 39.
Kg2 {[%clk 0:00:06.4]} 39... b1=Q {[%clk 0:00:04]} 40. Bxb1 {[%clk 0:00:06.9]}
40... Qxb1 {[%clk 0:00:04.2]} 41. e5+ {[%clk 0:00:07.8]} 41... Ke7 {[%clk
0:00:03.7]} 42. Nhf7 {[%clk 0:00:08.7]} 42... Qb2+ {[%clk 0:00:04.2]} 0-1

[Event "Late-Titled-Tuesday-Blitz-January-16-2024"]
[Site "Chess.com"]
[Date "2024.01.16"]
[Round "3"]
[White "aghasiyevkamal"]
[Black "Cheer_Down"]
[Result "0-1"]
[WhiteElo "2614"]
[BlackElo "2472"]
[TimeControl "180+1"]
[EndTime "14:27:46 PST"]
[Termination "Cheer_Down won by resignation"]

1. d4 {[%clk 0:03:00.9]} 1... Nf6 {[%clk 0:02:59.6]} 2. c4 {[%clk 0:03:00]} 2...
e6 {[%clk 0:02:59.8]} 3. g3 {[%clk 0:02:46.7]} 3... d5 {[%clk 0:02:57.1]} 4. Nf3
{[%clk 0:02:43.6]} 4... Be7 {[%clk 0:02:56.8]} 5. Bg2 {[%clk 0:02:43.3]} 5...
O-O {[%clk 0:02:56.7]} 6. O-O {[%clk 0:02:41.2]} 6... dxc4 {[%clk 0:02:57]} 7.
Qc2 {[%clk 0:02:40.6]} 7... a6 {[%clk 0:02:56.7]} 8. a4 {[%clk 0:02:38.6]} 8...
Bd7 {[%clk 0:02:56.3]} 9. Qxc4 {[%clk 0:02:36.1]} 9... Bc6 {[%clk 0:02:56.3]}
10. Bg5 {[%clk 0:02:28.3]} 10... Nbd7 {[%clk 0:02:55.2]} 11. a5 {[%clk
0:02:27.3]} 11... h6 {[%clk 0:02:53.5]} 12. Bf4 {[%clk 0:02:20.4]} 12... Bd5
{[%clk 0:02:48.8]} 13. Qc1 {[%clk 0:02:03.6]} 13... c5 {[%clk 0:02:48.9]} 14.
Nc3 {[%clk 0:01:33.1]} 14... Bc6 {[%clk 0:02:47.9]} 15. dxc5 {[%clk 0:01:15.7]}
15... Nxc5 {[%clk 0:02:44.8]} 16. Qc2 {[%clk 0:01:14.4]} 16... Nd5 {[%clk
0:02:39.1]} 17. Nxd5 {[%clk 0:01:10.7]} 17... Qxd5 {[%clk 0:02:37]} 18. Rfd1
{[%clk 0:01:06]} 18... Qb3 {[%clk 0:02:36.1]} 19. Nd4 {[%clk 0:00:57.9]} 19...
Qxc2 {[%clk 0:02:34.9]} 20. Nxc2 {[%clk 0:00:58.2]} 20... Bxg2 {[%clk
0:02:34.5]} 21. Kxg2 {[%clk 0:00:58.6]} 21... Rfd8 {[%clk 0:02:28.6]} 22. b4
{[%clk 0:00:38.1]} 22... Nb3 {[%clk 0:02:20.3]} 23. Rab1 {[%clk 0:00:26.8]}
23... Rxd1 {[%clk 0:02:19.8]} 24. Rxd1 {[%clk 0:00:26]} 24... Rd8 {[%clk
0:02:20.3]} 25. Rxd8+ {[%clk 0:00:19.3]} 25... Bxd8 {[%clk 0:02:19.9]} 26. Kf3
{[%clk 0:00:17.9]} 26... f5 {[%clk 0:02:12.1]} 27. Be5 {[%clk 0:00:16.9]} 27...
Nd2+ {[%clk 0:02:06.2]} 28. Kg2 {[%clk 0:00:15.3]} 28... Nc4 {[%clk 0:02:04.1]}
29. Bc3 {[%clk 0:00:15.4]} 29... Kf7 {[%clk 0:02:00.3]} 30. f4 {[%clk
0:00:14.6]} 30... g5 {[%clk 0:01:58.8]} 31. Kf3 {[%clk 0:00:11.4]} 31... g4+
{[%clk 0:01:58.2]} 32. Kf2 {[%clk 0:00:11.8]} 32... h5 {[%clk 0:01:56.3]} 33. e3
{[%clk 0:00:11.8]} 33... Be7 {[%clk 0:01:47.8]} 34. Ke2 {[%clk 0:00:11.9]} 34...
Nd6 {[%clk 0:01:44.8]} 35. Be1 {[%clk 0:00:10.2]} 35... Ne4 {[%clk 0:01:44]} 36.
Nd4 {[%clk 0:00:09.8]} 36... Bf6 {[%clk 0:01:42.4]} 37. Nb3 {[%clk 0:00:09.1]}
37... Ke7 {[%clk 0:01:37.3]} 38. Kd3 {[%clk 0:00:07.6]} 38... Kd7 {[%clk
0:01:36]} 39. Kc4 {[%clk 0:00:07.6]} 39... Kc6 {[%clk 0:01:36.1]} 40. Nd4+
{[%clk 0:00:03.5]} 40... Kd7 {[%clk 0:01:33.1]} 41. Nb3 {[%clk 0:00:03.6]} 41...
Be7 {[%clk 0:01:28.6]} 42. Nc1 {[%clk 0:00:02.6]} 42... Kc6 {[%clk 0:01:25.6]}
43. Nd3 {[%clk 0:00:02.9]} 43... Bd6 {[%clk 0:01:24.3]} 44. Nf2 {[%clk
0:00:03.2]} 44... Nf6 {[%clk 0:01:19.3]} 45. Bd2 {[%clk 0:00:03.4]} 45... Nd7
{[%clk 0:01:15.3]} 46. e4 {[%clk 0:00:03.8]} 46... Be7 {[%clk 0:01:11.6]} 47. e5
{[%clk 0:00:03.9]} 47... b5+ {[%clk 0:01:07.7]} 48. Kd3 {[%clk 0:00:03.2]} 48...
Nb8 {[%clk 0:01:03.6]} 49. Nd1 {[%clk 0:00:03.5]} 49... Kd7 {[%clk 0:01:04]} 50.
Ne3 {[%clk 0:00:03.9]} 50... Nc6 {[%clk 0:01:03.9]} 51. Nc2 {[%clk 0:00:04.6]}
51... h4 {[%clk 0:01:02.9]} 52. Ke3 {[%clk 0:00:04.5]} 52... h3 {[%clk
0:01:02.4]} 53. Bc3 {[%clk 0:00:04.4]} 53... Bf8 {[%clk 0:01:01.7]} 54. Kd3
{[%clk 0:00:04.5]} 54... Ne7 {[%clk 0:01:01.9]} 55. Ne3 {[%clk 0:00:03.9]} 55...
Kc6 {[%clk 0:01:01.1]} 56. Bd4 {[%clk 0:00:04.3]} 56... Nd5 {[%clk 0:01:01.1]}
57. Nxd5 {[%clk 0:00:03.8]} 57... Kxd5 {[%clk 0:01:02]} 58. Bc3 {[%clk
0:00:04.5]} 58... Be7 {[%clk 0:01:02.1]} 59. Be1 {[%clk 0:00:04.7]} 59... Bd8
{[%clk 0:01:01.7]} 60. Bd2 {[%clk 0:00:05.2]} 60... Bc7 {[%clk 0:01:02.1]} 61.
Be1 {[%clk 0:00:05.5]} 61... Bb8 {[%clk 0:01:02.4]} 62. Bd2 {[%clk 0:00:05.9]}
62... Ba7 {[%clk 0:01:02.6]} 63. Be1 {[%clk 0:00:04.9]} 63... Bg1 {[%clk
0:01:02.5]} 64. Kc3 {[%clk 0:00:01.4]} 64... Ke4 {[%clk 0:01:01.7]} 65. Bf2
{[%clk 0:00:02.3]} 65... Bxf2 {[%clk 0:01:01]} 0-1

[Event "Late-Titled-Tuesday-Blitz-January-16-2024"]
[Site "Chess.com"]
[Date "2024.01.16"]
[Round "3"]
[White "Antipov_Mikhail_Al"]
[Black "sofaceindisguise"]
[Result "1/2-1/2"]
[WhiteElo "2921"]
[BlackElo "2659"]
[TimeControl "180+1"]
[EndTime "14:27:51 PST"]
[Termination "Game drawn by repetition"]

1. e4 {[%clk 0:03:00.9]} 1... e5 {[%clk 0:02:58.9]} 2. Nf3 {[%clk 0:03:00.7]}
2... Nc6 {[%clk 0:02:59.1]} 3. Bc4 {[%clk 0:02:58.1]} 3... Nf6 {[%clk
0:02:56.8]} 4. d3 {[%clk 0:02:57.8]} 4... h6 {[%clk 0:02:56.2]} 5. h3 {[%clk
0:02:57]} 5... Bc5 {[%clk 0:02:54.3]} 6. Nbd2 {[%clk 0:02:52.5]} 6... d6 {[%clk
0:02:52.9]} 7. c3 {[%clk 0:02:52.1]} 7... a6 {[%clk 0:02:46.8]} 8. a4 {[%clk
0:02:51.3]} 8... Ba7 {[%clk 0:02:45.5]} 9. Nf1 {[%clk 0:02:43.4]} 9... O-O
{[%clk 0:02:44.9]} 10. Ng3 {[%clk 0:02:38.6]} 10... Ne7 {[%clk 0:02:38.3]} 11.
Bb3 {[%clk 0:02:35.5]} 11... Ng6 {[%clk 0:02:36]} 12. O-O {[%clk 0:02:27]} 12...
c6 {[%clk 0:02:29.4]} 13. d4 {[%clk 0:02:17.7]} 13... Qc7 {[%clk 0:02:28.6]} 14.
Bc2 {[%clk 0:02:14]} 14... Re8 {[%clk 0:02:27.7]} 15. a5 {[%clk 0:02:08.2]}
15... Be6 {[%clk 0:02:19.4]} 16. Re1 {[%clk 0:02:08.1]} 16... Rad8 {[%clk
0:02:19.4]} 17. Bd2 {[%clk 0:02:08.7]} 17... Bc8 {[%clk 0:02:14.4]} 18. Qc1
{[%clk 0:01:51]} 18... Kh7 {[%clk 0:02:07.3]} 19. Be3 {[%clk 0:01:48.8]} 19...
Qb8 {[%clk 0:01:44.7]} 20. Ra4 {[%clk 0:01:46.1]} 20... c5 {[%clk 0:01:44.2]}
21. dxe5 {[%clk 0:01:31.6]} 21... dxe5 {[%clk 0:01:44.1]} 22. Nf5 {[%clk
0:01:31.6]} 22... Ng8 {[%clk 0:01:35.3]} 23. Nd2 {[%clk 0:01:20.1]} 23... Be6
{[%clk 0:01:34.7]} 24. g3 {[%clk 0:01:11.9]} 24... N6e7 {[%clk 0:01:23.2]} 25.
Nf3 {[%clk 0:01:04.8]} 25... Nc6 {[%clk 0:01:23.2]} 26. Kg2 {[%clk 0:01:00.5]}
26... Qc7 {[%clk 0:01:21]} 27. h4 {[%clk 0:00:34.8]} 27... c4 {[%clk 0:01:11.4]}
28. Bxa7 {[%clk 0:00:09.3]} 28... Nxa7 {[%clk 0:01:12.3]} 29. Rh1 {[%clk
0:00:05.5]} 29... Nc6 {[%clk 0:01:05.7]} 30. Ng5+ {[%clk 0:00:05.6]} 30... Kh8
{[%clk 0:01:06.2]} 31. Nxe6 {[%clk 0:00:05.1]} 31... Rxe6 {[%clk 0:01:03.9]} 32.
Rxc4 {[%clk 0:00:04.9]} 32... Qxa5 {[%clk 0:01:03.4]} 33. Rd1 {[%clk 0:00:03.4]}
33... Nf6 {[%clk 0:00:59.3]} 34. Ne3 {[%clk 0:00:03]} 34... Red6 {[%clk
0:00:57.9]} 35. Rxd6 {[%clk 0:00:02.2]} 35... Rxd6 {[%clk 0:00:58.8]} 36. Bb3
{[%clk 0:00:02.7]} 36... Qb6 {[%clk 0:00:48.8]} 37. Qc2 {[%clk 0:00:02.6]} 37...
g6 {[%clk 0:00:45.1]} 38. Ra4 {[%clk 0:00:02.8]} 38... Kg7 {[%clk 0:00:44.9]}
39. Ra1 {[%clk 0:00:03.2]} 39... h5 {[%clk 0:00:44.7]} 40. Rd1 {[%clk
0:00:02.1]} 40... Qd8 {[%clk 0:00:41.4]} 41. Rxd6 {[%clk 0:00:01.8]} 41... Qxd6
{[%clk 0:00:42.3]} 42. Nd5 {[%clk 0:00:01.4]} 42... b5 {[%clk 0:00:36.7]} 43.
Nxf6 {[%clk 0:00:01.2]} 43... Qxf6 {[%clk 0:00:37.6]} 44. Qd3 {[%clk 0:00:01.9]}
44... Qd8 {[%clk 0:00:34.6]} 45. Bd5 {[%clk 0:00:02.2]} 45... Ne7 {[%clk
0:00:33.5]} 46. c4 {[%clk 0:00:02.2]} 46... Qb6 {[%clk 0:00:30.5]} 47. cxb5
{[%clk 0:00:02.3]} 47... axb5 {[%clk 0:00:31.4]} 48. b4 {[%clk 0:00:02.6]} 48...
Nc6 {[%clk 0:00:28.5]} 49. Bxc6 {[%clk 0:00:02.6]} 49... Qxc6 {[%clk 0:00:29.4]}
50. Kf3 {[%clk 0:00:02.9]} 50... Kf6 {[%clk 0:00:26.3]} 51. Qd8+ {[%clk
0:00:02.9]} 51... Kg7 {[%clk 0:00:26.5]} 52. Qd3 {[%clk 0:00:02.9]} 52... Kf6
{[%clk 0:00:26.5]} 53. Qd8+ {[%clk 0:00:03.1]} 53... Kg7 {[%clk 0:00:26.7]} 54.
Qd3 {[%clk 0:00:03.8]} 1/2-1/2

[Event "Late-Titled-Tuesday-Blitz-January-16-2024"]
[Site "Chess.com"]
[Date "2024.01.16"]
[Round "3"]
[White "mbchess97"]
[Black "Njal28"]
[Result "0-1"]
[WhiteElo "2408"]
[BlackElo "3019"]
[TimeControl "180+1"]
[EndTime "14:27:55 PST"]
[Termination "Njal28 won on time"]

1. c4 {[%clk 0:03:00.9]} 1... g6 {[%clk 0:02:57.2]} 2. g3 {[%clk 0:03:01.1]}
2... Bg7 {[%clk 0:02:58]} 3. Bg2 {[%clk 0:03:01.7]} 3... Nc6 {[%clk 0:02:57.4]}
4. Nf3 {[%clk 0:03:00]} 4... d6 {[%clk 0:02:57.6]} 5. d4 {[%clk 0:02:55.5]} 5...
Bd7 {[%clk 0:02:56]} 6. O-O {[%clk 0:02:55.1]} 6... Qc8 {[%clk 0:02:55.9]} 7.
Nc3 {[%clk 0:02:37.8]} 7... Bh3 {[%clk 0:02:55]} 8. e4 {[%clk 0:02:33.1]} 8...
h5 {[%clk 0:02:52.6]} 9. Bg5 {[%clk 0:02:11.2]} 9... Bg4 {[%clk 0:02:29.9]} 10.
Ne2 {[%clk 0:01:55.3]} 10... h4 {[%clk 0:02:11.1]} 11. Bxh4 {[%clk 0:01:38.7]}
11... f6 {[%clk 0:02:04.6]} 12. d5 {[%clk 0:01:16.2]} 12... Nd8 {[%clk
0:02:03.4]} 13. Qd2 {[%clk 0:01:10.7]} 13... g5 {[%clk 0:01:55]} 14. Bxg5 {[%clk
0:01:10.9]} 14... fxg5 {[%clk 0:01:54.8]} 15. Nxg5 {[%clk 0:01:11.2]} 15... Nf6
{[%clk 0:01:39.4]} 16. f4 {[%clk 0:01:09.4]} 16... Bxe2 {[%clk 0:01:17.5]} 17.
Qxe2 {[%clk 0:01:09.3]} 17... Ng4 {[%clk 0:01:17.8]} 18. h3 {[%clk 0:01:04.4]}
18... Bd4+ {[%clk 0:01:16.5]} 19. Kh1 {[%clk 0:01:04.3]} 19... Ne3 {[%clk
0:01:17]} 20. Rf3 {[%clk 0:00:44.5]} 20... Nxg2 {[%clk 0:01:14.8]} 21. Kxg2
{[%clk 0:00:44.9]} 21... Bf6 {[%clk 0:01:14.7]} 22. h4 {[%clk 0:00:42.3]} 22...
Qg4 {[%clk 0:01:06.5]} 23. c5 {[%clk 0:00:28.4]} 23... Rxh4 {[%clk 0:00:50.4]}
24. cxd6 {[%clk 0:00:19.6]} 24... cxd6 {[%clk 0:00:48.2]} 25. Qb5+ {[%clk
0:00:15.5]} 25... Kf8 {[%clk 0:00:48.2]} 26. e5 {[%clk 0:00:13.5]} 26... Bxg5
{[%clk 0:00:18.6]} 27. fxg5+ {[%clk 0:00:13.8]} 27... Kg7 {[%clk 0:00:19.3]} 28.
Qe8 {[%clk 0:00:13.1]} 28... Rh2+ {[%clk 0:00:10]} 29. Kxh2 {[%clk 0:00:11.1]}
29... Qxf3 {[%clk 0:00:10.9]} 30. Qxe7+ {[%clk 0:00:11.1]} 30... Nf7 {[%clk
0:00:11.5]} 31. Qf6+ {[%clk 0:00:06.4]} 31... Qxf6 {[%clk 0:00:11.3]} 32. gxf6+
{[%clk 0:00:06.1]} 32... Kg6 {[%clk 0:00:07.4]} 33. e6 {[%clk 0:00:06.7]} 33...
Ne5 {[%clk 0:00:07.3]} 34. f7 {[%clk 0:00:06.6]} 34... Kf6 {[%clk 0:00:05.4]}
35. Rf1+ {[%clk 0:00:06]} 35... Ke7 {[%clk 0:00:06]} 36. Kg2 {[%clk 0:00:05.8]}
36... Ng4 {[%clk 0:00:04.7]} 37. Rf4 {[%clk 0:00:05.7]} 37... Ne3+ {[%clk
0:00:04.6]} 38. Kf2 {[%clk 0:00:05.3]} 38... Nxd5 {[%clk 0:00:05.5]} 39. Re4
{[%clk 0:00:03.4]} 39... Nc7 {[%clk 0:00:03.7]} 40. g4 {[%clk 0:00:03.4]} 40...
Nxe6 {[%clk 0:00:04]} 41. g5 {[%clk 0:00:03.8]} 41... Kxf7 {[%clk 0:00:04.5]}
42. g6+ {[%clk 0:00:03.5]} 42... Kf6 {[%clk 0:00:05.2]} 43. Rb4 {[%clk
0:00:02.2]} 43... Rb8 {[%clk 0:00:05.2]} 44. a4 {[%clk 0:00:01.4]} 44... Kxg6
{[%clk 0:00:05.7]} 45. a5 {[%clk 0:00:01.9]} 45... a6 {[%clk 0:00:06.5]} 46. Rb6
{[%clk 0:00:01.9]} 46... Kf6 {[%clk 0:00:06.6]} 47. Rxd6 {[%clk 0:00:02.1]}
47... Ke7 {[%clk 0:00:07.4]} 48. Rb6 {[%clk 0:00:01.9]} 48... Kd7 {[%clk
0:00:08.1]} 49. Ke2 {[%clk 0:00:01.5]} 49... Nd8 {[%clk 0:00:08]} 50. Kd2 {[%clk
0:00:01.6]} 50... Nc6 {[%clk 0:00:08.7]} 0-1